[Event "FIDE World Rapid-ch Open 2018"]
[White "Anand, Viswanathan"]
[Black "Potkin, Vladimir"]
[Site "St. Petersburg"]
[Round "10.14"]
[Annotator "RC"]
[Result "1-0"]
[Date "2018.12.27"]
[WhiteElo "2773"]
[BlackElo "2597"]
[PlyCount "81"]
[TimeControl "900+10"]

1. e4 {[%emt 0:0:0]} e5 {[%emt 0:0:0]} 2. Nf3 {[%emt 0:0:0]} Nc6 {[%emt 0:0:0]
} 3. Bb5 {[%emt 0:0:0]} Nf6 {[%emt 0:0:0]} 4. d3 {[%emt 0:0:0]} Bc5 {[%emt 0:0:0]} 5. Bxc6 {[%emt 0:0:5]} dxc6 {[%emt 0:0:1]} 6. 0-0 {[%emt 0:0:4]} Nd7 {[%emt 0:0:52]} 7. Be3 {[%emt 0:0:32]} Bd6 {[%emt 0:0:0]} 8. Nbd2 {[%emt 0:1:5]} 0-0 {[%emt 0:0:7]} 9. Nc4 {[%emt 0:0:7]} c5 {[%emt 0:0:10]
} 10. Nxd6 {[%emt 0:0:42]} cxd6 {[%emt 0:0:1]} 11. Nd2 {[%emt 0:0:3]
} Qe7 {[%emt 0:4:11]} 12. f4 {[%emt 0:0:19]} exf4 {[%emt 0:0:0]} 13. Bxf4 {[%emt 0:0:4]} Ne5 {[%emt 0:0:2]} 14. Qe1 {[%emt 0:0:43]} Ng6 {[%emt 0:0:29]} 15. Bg3 {[%emt 0:0:46]} Be6 {[%emt 0:0:8]} 16. a4 {[%emt 0:0:14]
} Rad8 {[%emt 0:0:15]} 17. b3 {[%emt 0:0:11]} d5 {[%emt 0:0:0]} 18. exd5 {[%emt 0:0:11]} Bxd5 {[%emt 0:0:10]} 19. Qxe7 {[%emt 0:1:29]} Nxe7 {[%emt 0:0:2]} 20. Nc4 {[%emt 0:0:6]} Bxc4 {[%emt 0:4:53]} 21. bxc4 {[%emt 0:0:6]
} Nc6 {[%emt 0:0:2]} 22. a5 {[%emt 0:0:55]} Nd4 {[%emt 0:0:0]} 23. Rf2 {[%emt 0:1:28]} Rfe8 {[%emt 0:0:5]} 24. Kf1 {[%emt 0:0:9]} Re6 {[%emt 0:0:23]} 25. Rd2 {[%emt 0:0:48]} Nc6 {[%emt 0:0:56]} 26. Bf2 {[%emt 0:0:27]
} Re5 {[%emt 0:0:1]} 27. Re2 {[%emt 0:0:7]} Rde8 {[%emt 0:0:0]} 28. Rxe5 {[%emt 0:0:43]} Rxe5 {[%emt 0:0:1]} 29. Rb1 {[%emt 0:0:7]} Nxa5 {[%emt 0:0:59]} 30. Be1 {[%emt 0:0:3]} Nc6 {[%emt 0:0:22]} 31. Rxb7 {[%emt 0:0:6]
} h5 {[%emt 0:0:22]} 32. Bc3 {[%emt 0:0:10]} Rf5+ {[%emt 0:0:0]} 33. Ke2 {[%emt 0:0:11]} a5 {[%emt 0:0:48]} 34. Rc7 {[%emt 0:1:49]} Nb4 {[%emt 0:0:9]} 35. Ra7 {[%emt 0:0:3]} Nxc2 {[%emt 0:0:52]} 36. Rxa5 {[%emt 0:0:3]
} h4 {[%emt 0:0:48]} 37. d4 {[%emt 0:0:55]} Rg5 {[%emt 0:0:1]
} 38. dxc5 {[%emt 0:0:8]} Rxg2+ {[%emt 0:1:37]} 39. Kd3 {[%emt 0:0:6]} Kf8 {[%emt 0:0:20]} 40. c6 {[%emt 0:0:7]} Ke7 {[%emt 0:0:1]} 41. Rc5 {[%emt 0:0:0]} 1-0

[Event "FIDE World Rapid-ch Open 2018"]
[White "Timofeev, Artyom"]
[Black "Sjugirov, Sanan"]
[Site "St. Petersburg"]
[Round "10.15"]
[Annotator "ChessBase"]
[Result "1-0"]
[Date "2018.12.27"]
[WhiteElo "2589"]
[BlackElo "2663"]
[PlyCount "103"]
[TimeControl "900+10"]

1. c4 {[%emt 0:0:0]} c5 {[%emt 0:0:0]} 2. g3 {[%emt 0:0:11]} g6 {[%emt 0:0:0]} 3. Bg2 {[%emt 0:0:3]} Bg7 {[%emt 0:0:0]} 4. Nc3 {[%emt 0:0:5]} Nc6 {[%emt 0:0:5]} 5. e3 {[%emt 0:0:4]} Nh6 {[%emt 0:1:56]} 6. Nge2 {[%emt 0:0:6]
} Nf5 {[%emt 0:0:2]} 7. 0-0 {[%emt 0:0:8]} d6 {[%emt 0:0:18]
} 8. b3 {[%emt 0:0:9]} 0-0 {[%emt 0:1:15]} 9. Bb2 {[%emt 0:0:3]} Bd7 {[%emt 0:0:22]
} 10. d3 {[%emt 0:0:5]} a6 {[%emt 0:0:16]} 11. Qd2 {[%emt 0:0:0]} Rb8 {[%emt 0:0:3]} 12. Nd5 {[%emt 0:0:59]} Bxb2 {[%emt 0:0:50]} 13. Qxb2 {[%emt 0:0:2]} b5 {[%emt 0:0:2]} 14. Qd2 {[%emt 0:1:5]} a5 {[%emt 0:0:0]} 15. Rfd1 {[%emt 0:1:54]} Re8 {[%emt 0:2:48]} 16. cxb5 {[%emt 0:2:54]
} Rxb5 {[%emt 0:0:3]} 17. d4 {[%emt 0:0:4]} cxd4 {[%emt 0:0:30]} 18. exd4 {[%emt 0:0:17]} Rb8 {[%emt 0:0:44]} 19. Ndf4 {[%emt 0:1:57]} Nb4 {[%emt 0:0:0]} 20. Rac1 {[%emt 0:0:17]} e6 {[%emt 0:1:1]} 21. a3 {[%emt 0:2:15]} Na6 {[%emt 0:0:1]} 22. Rb1 {[%emt 0:0:2]} Qb6 {[%emt 0:0:15]} 23. Bh3 {[%emt 0:0:47]
} Ne7 {[%emt 0:1:18]} 24. d5 {[%emt 0:0:31]} Nc5 {[%emt 0:0:0]} 25. dxe6 {[%emt 0:0:5]} Nxe6 {[%emt 0:1:19]} 26. Nxe6 {[%emt 0:0:43]} Bxe6 {[%emt 0:0:1]} 27. Bxe6 {[%emt 0:0:5]} fxe6 {[%emt 0:0:1]} 28. Qxd6 {[%emt 0:0:5]} Nd5 {[%emt 0:0:0]} 29. Qxb6 {[%emt 0:2:23]} Rxb6 {[%emt 0:0:0]} 30. b4 {[%emt 0:0:3]} axb4 {[%emt 0:0:5]} 31. axb4 {[%emt 0:0:2]} Reb8 {[%emt 0:0:14]} 32. b5 {[%emt 0:0:12]} Rxb5 {[%emt 0:0:14]} 33. Rxb5 Rxb5 34. Nd4 {[%emt 0:0:6]} Rb6 {[%emt 0:0:50]} 35. Nxe6 {[%emt 0:0:7]} Rxe6 {[%emt 0:0:1]} 36. Rxd5 {[%emt 0:0:2]} Re7 {[%emt 0:0:9]} 37. g4 {[%emt 0:0:6]
} Kg7 {[%emt 0:0:5]} 38. Kg2 {[%emt 0:0:3]} Ra7 {[%emt 0:0:0]} 39. Kg3 {[%emt 0:0:4]} Rb7 {[%emt 0:0:21]} 40. h4 {[%emt 0:0:4]} Ra7 {[%emt 0:0:5]} 41. h5 {[%emt 0:0:11]} Rb7 {[%emt 0:0:30]} 42. f4 {[%emt 0:0:0]} gxh5 {[%emt 0:0:18]} 43. Rxh5 {[%emt 0:0:3]} Rb1 {[%emt 0:0:11]} 44. Ra5 {[%emt 0:0:10]} Rb4 {[%emt 0:0:10]} 45. Ra7+ {[%emt 0:0:10]} Kg8 {[%emt 0:0:15]
} 46. g5 {[%emt 0:0:7]} Rb6 {[%emt 0:0:9]} 47. f5 {[%emt 0:0:0]} Rb4 {[%emt 0:0:5]} 48. f6 {[%emt 0:0:13]} Rc4 {[%emt 0:0:9]} 49. Ra8+ {[%emt 0:0:11]} Kf7 {[%emt 0:0:5]} 50. Rh8 {[%emt 0:0:5]} Kg6 {[%emt 0:0:25]
} 51. Rg8+ {[%emt 0:0:3]} Kf7 {[%emt 0:0:7]} 52. Rg7+ {[%emt 0:0:2]
} 1-0

[Event "FIDE World Rapid-ch Open 2018"]
[White "Khanin, Semen"]
[Black "Anton Guijarro, David"]
[Site "St. Petersburg"]
[Round "10.16"]
[Annotator "ChessBase"]
[Result "0-1"]
[Date "2018.12.27"]
[WhiteElo "2514"]
[BlackElo "2642"]
[PlyCount "74"]
[TimeControl "900+10"]

1. e4 {[%emt 0:0:0]} e5 {[%emt 0:0:0]} 2. Nf3 {[%emt 0:0:0]} Nc6 {[%emt 0:0:0]
} 3. Bb5 {[%emt 0:0:6]} a6 {[%emt 0:0:0]} 4. Ba4 {[%emt 0:0:0]} Nf6 {[%emt 0:0:3]} 5. 0-0 {[%emt 0:0:9]} Nxe4 {[%emt 0:0:3]} 6. d4 {[%emt 0:0:2]
} b5 {[%emt 0:0:3]} 7. Bb3 {[%emt 0:0:2]} d5 {[%emt 0:0:3]} 8. dxe5 {[%emt 0:0:2]} Be6 {[%emt 0:0:2]} 9. Nbd2 {[%emt 0:0:2]} Be7 {[%emt 0:0:3]
} 10. c3 {[%emt 0:0:2]} 0-0 {[%emt 0:0:4]} 11. Bc2 {[%emt 0:0:0]} f5 {[%emt 0:0:3]} 12. Nb3 {[%emt 0:0:6]} Qd7 {[%emt 0:0:3]} 13. Qe1 {[%emt 0:0:1]} Bf7 {[%emt 0:1:25]} 14. Nfd4 {[%emt 0:0:19]} Nxe5 {[%emt 0:0:14]
} 15. f3 {[%emt 0:0:3]} Bg6 {[%emt 0:0:1]} 16. fxe4 {[%emt 0:0:0]} fxe4 {[%emt 0:0:2]} 17. Bf4 {[%emt 0:1:17]} Nc4 {[%emt 0:0:2]} 18. Rb1 {[%emt 0:2:4]} Rf7 {[%emt 0:1:23]} 19. Nd2 {[%emt 0:1:23]} Raf8 {[%emt 0:2:42]
} 20. Nxc4 {[%emt 0:0:3]} bxc4 {[%emt 0:0:33]} 21. Qd2 {[%emt 0:0:7]
} c5 {[%emt 0:2:18]} 22. Ne2 {[%emt 0:4:25]} d4 {[%emt 0:2:24]
} 23. cxd4 {[%emt 0:0:2]} cxd4 {[%emt 0:0:0]} 24. Nxd4 {[%emt 0:0:7]} Bb4 {[%emt 0:0:21]} 25. Qe3 {[%emt 0:1:11]} Bc5 {[%emt 0:0:3]} 26. Rbd1 {[%emt 0:0:11]
} Rd8 {[%emt 0:0:30]} 27. Be5 {[%emt 0:0:57]} Re7 {[%emt 0:0:0]} 28. Qg3 {[%emt 0:4:43]} Rxe5 {[%emt 0:0:30]} 29. Qxe5 {[%emt 0:0:2]} Bxd4+ {[%emt 0:0:2]} 30. Rxd4 {[%emt 0:0:6]} Qxd4+ {[%emt 0:0:2]} 31. Qxd4 {[%emt 0:0:1]} Rxd4 {[%emt 0:0:1]} 32. Rf4 {[%emt 0:0:8]} Rd2 {[%emt 0:0:56]
} 33. Ba4 {[%emt 0:0:50]} Rxb2 {[%emt 0:0:42]} 34. Bc6 {[%emt 0:0:4]
} Rd2 {[%emt 0:0:37]} 35. Kf1 {[%emt 0:0:15]} c3 {[%emt 0:0:0]} 36. Ba4 {[%emt 0:0:10]} h5 {[%emt 0:0:33]} 37. Bb3+ {[%emt 0:0:5]} Kh7 {[%emt 0:0:3]} 0-1

[Event "FIDE World Rapid-ch Open 2018"]
[White "Saric, Ivan"]
[Black "Akopian, Vladimir"]
[Site "St. Petersburg"]
[Round "10.17"]
[Annotator "ChessBase"]
[Result "1-0"]
[Date "2018.12.27"]
[WhiteElo "2695"]
[BlackElo "2650"]
[PlyCount "87"]
[TimeControl "900+10"]

1. e4 {[%emt 0:0:0]} e5 {[%emt 0:0:0]} 2. Nf3 {[%emt 0:0:0]} Nc6 {[%emt 0:0:0]
} 3. Bb5 {[%emt 0:0:0]} a6 {[%emt 0:0:21]} 4. Ba4 {[%emt 0:0:0]} Nf6 {[%emt 0:0:1]} 5. 0-0 {[%emt 0:0:0]} Be7 {[%emt 0:0:1]} 6. Re1 {[%emt 0:0:0]
} b5 {[%emt 0:0:4]} 7. Bb3 {[%emt 0:0:0]} d6 {[%emt 0:0:2]} 8. c3 {[%emt 0:0:1]} 0-0 {[%emt 0:0:3]} 9. h3 {[%emt 0:0:1]} Na5 {[%emt 0:0:1]
} 10. Bc2 {[%emt 0:0:1]} c5 {[%emt 0:0:2]} 11. d4 {[%emt 0:0:0]} Qc7 {[%emt 0:0:2]} 12. Nbd2 {[%emt 0:0:5]} cxd4 {[%emt 0:0:3]} 13. cxd4 {[%emt 0:0:1]} Nc6 {[%emt 0:0:4]} 14. Nb3 {[%emt 0:1:9]} a5 {[%emt 0:0:8]
} 15. Be3 {[%emt 0:0:5]} a4 {[%emt 0:0:3]} 16. Nbd2 {[%emt 0:0:0]} Bd7 {[%emt 0:0:8]} 17. Rc1 {[%emt 0:0:12]} Qb7 {[%emt 0:0:38]} 18. a3 {[%emt 0:0:27]} Rfe8 {[%emt 0:2:1]} 19. Bd3 {[%emt 0:1:12]} exd4 {[%emt 0:0:33]
} 20. Nxd4 {[%emt 0:0:3]} Ne5 {[%emt 0:0:3]} 21. Bb1 {[%emt 0:0:44]
} b4 {[%emt 0:0:13]} 22. f4 {[%emt 0:1:3]} Ng6 {[%emt 0:0:22]
} 23. Qf3 {[%emt 0:0:25]} bxa3 {[%emt 0:0:38]} 24. bxa3 {[%emt 0:0:1]} Rac8 {[%emt 0:0:53]} 25. Rxc8 {[%emt 0:2:21]} Rxc8 {[%emt 0:0:18]} 26. Nf5 {[%emt 0:1:20]
} Bf8 {[%emt 0:2:12]} 27. Bd4 {[%emt 0:0:11]} Bxf5 {[%emt 0:0:0]} 28. exf5 {[%emt 0:0:7]} Qxf3 {[%emt 0:0:7]} 29. Nxf3 {[%emt 0:0:2]} Nxf4 {[%emt 0:0:9]} 30. Kh2 {[%emt 0:2:33]} N4d5 {[%emt 0:2:0]} 31. Bd3 {[%emt 0:2:23]
} Nf4 {[%emt 0:2:1]} 32. Bf1 {[%emt 0:0:11]} Rc2 {[%emt 0:0:0]} 33. Rb1 {[%emt 0:0:27]} Ra2 {[%emt 0:1:25]} 34. Bb2 {[%emt 0:2:20]} d5 {[%emt 0:1:10]} 35. Be5 {[%emt 0:0:1]} N4h5 {[%emt 0:0:18]} 36. Rb7 {[%emt 0:3:4]
} Rxa3 {[%emt 0:0:22]} 37. Ra7 {[%emt 0:0:1]} Ne4 {[%emt 0:0:0]} 38. Bb5 {[%emt 0:0:15]} Nhf6 {[%emt 0:0:5]} 39. Ra8 {[%emt 0:0:23]} Rb3 {[%emt 0:0:59]} 40. Nd4 {[%emt 0:0:1]} Rb1 {[%emt 0:0:17]} 41. Ne6 {[%emt 0:0:15]
} fxe6 {[%emt 0:0:14]} 42. fxe6 {[%emt 0:0:1]} Ng5 {[%emt 0:0:0]} 43. e7 {[%emt 0:0:4]} Ne6 {[%emt 0:0:2]} 44. Bxf6 {[%emt 0:0:3]} 1-0

[Event "FIDE World Rapid-ch Open 2018"]
[White "Goganov, Aleksey"]
[Black "Cheparinov, Ivan"]
[Site "St. Petersburg"]
[Round "10.18"]
[Annotator "ChessBase"]
[Result "1/2-1/2"]
[Date "2018.12.27"]
[WhiteElo "2612"]
[BlackElo "2709"]
[PlyCount "50"]
[TimeControl "900+10"]

1. d4 {[%emt 0:0:0]} Nf6 {[%emt 0:0:0]} 2. c4 {[%emt 0:0:0]} e6 {[%emt 0:0:0]} 3. Nf3 {[%emt 0:0:0]} d5 {[%emt 0:0:0]} 4. g3 {[%emt 0:0:0]} Be7 {[%emt 0:0:2]} 5. Bg2 {[%emt 0:0:2]} 0-0 {[%emt 0:0:2]} 6. Nc3 {[%emt 0:0:0]} dxc4 {[%emt 0:0:3]} 7. Ne5 {[%emt 0:0:3]} Qd6 {[%emt 0:0:5]} 8. Nxc4 {[%emt 0:0:50]} Qa6 {[%emt 0:0:1]} 9. Qb3 {[%emt 0:1:33]} Nc6 {[%emt 0:0:23]
} 10. e3 {[%emt 0:0:42]} Rb8 {[%emt 0:0:2]} 11. 0-0 {[%emt 0:0:0]} b5 {[%emt 0:1:13]} 12. Nd2 {[%emt 0:0:5]} Na5 {[%emt 0:1:2]} 13. Qc2 {[%emt 0:0:7]} c5 {[%emt 0:1:56]} 14. dxc5 {[%emt 0:0:20]} Bxc5 {[%emt 0:0:19]
} 15. Nde4 {[%emt 0:2:7]} Nxe4 {[%emt 0:0:24]} 16. Nxe4 {[%emt 0:0:2]
} Be7 {[%emt 0:0:11]} 17. b3 {[%emt 0:0:28]} Bb7 {[%emt 0:0:0]} 18. Qc7 {[%emt 0:2:19]} Bxe4 {[%emt 0:1:6]} 19. Bxe4 {[%emt 0:0:18]} Bf6 {[%emt 0:0:11]} 20. Rb1 {[%emt 0:0:12]} Rbc8 {[%emt 0:0:7]} 21. Qf4 {[%emt 0:0:11]
} Nb7 {[%emt 0:0:35]} 22. Bb2 {[%emt 0:3:3]} Bxb2 {[%emt 0:0:0]} 23. Rxb2 {[%emt 0:0:1]} Nc5 {[%emt 0:0:18]} 24. Rd2 {[%emt 0:0:31]} Nxe4 {[%emt 0:1:10]} 25. Qxe4 {[%emt 0:0:3]} Qc6 {[%emt 0:0:19]} 1/2-1/2

[Event "FIDE World Rapid-ch Open 2018"]
[White "Alekseev, Evgeny"]
[Black "Fedoseev, Vladimir"]
[Site "St. Petersburg"]
[Round "10.19"]
[Annotator "RC"]
[Result "1-0"]
[Date "2018.12.27"]
[WhiteElo "2639"]
[BlackElo "2719"]
[PlyCount "109"]
[TimeControl "900+10"]

1. e4 {[%emt 0:0:0]} c5 {[%emt 0:0:0]} 2. Nf3 {[%emt 0:0:0]} d6 {[%emt 0:0:0]} 3. d4 {[%emt 0:0:8]} cxd4 {[%emt 0:0:0]} 4. Nxd4 {[%emt 0:0:33]} Nf6 {[%emt 0:0:0]} 5. Nc3 {[%emt 0:0:2]} a6 {[%emt 0:0:0]} 6. a3 {[%emt 0:0:11]
} b5 {[%emt 0:0:0]} 7. f3 {[%emt 0:1:9]} g6 {[%emt 0:2:30]} 8. Be3 {[%emt 0:0:19]} Bg7 {[%emt 0:0:2]} 9. Qd2 {[%emt 0:0:24]} h5 {[%emt 0:0:2]
} 10. a4 {[%emt 0:1:23]} b4 {[%emt 0:2:32]} 11. Na2 {[%emt 0:0:0]} a5 {[%emt 0:0:15]} 12. c3 {[%emt 0:0:50]} bxc3 {[%emt 0:0:4]} 13. Bb5+ {[%emt 0:0:9]} Bd7 {[%emt 0:0:5]} 14. Nxc3 {[%emt 0:0:21]} 0-0 {[%emt 0:0:21]
} 15. Qe2 {[%emt 0:1:24]} e5 {[%emt 0:2:57]} 16. Nc2 {[%emt 0:0:0]} Nc6 {[%emt 0:1:10]} 17. Rd1 {[%emt 0:1:1]} Qb8 {[%emt 0:0:22]} 18. 0-0 {[%emt 0:0:39]} Rc8 {[%emt 0:0:12]} 19. Rd2 {[%emt 0:0:39]} Be6 {[%emt 0:0:31]
} 20. Qf2 {[%emt 0:0:50]} Bf8 {[%emt 0:1:21]} 21. Qh4 {[%emt 0:0:0]} Nh7 {[%emt 0:0:4]} 22. Nd5 {[%emt 0:1:3]} Bxd5 {[%emt 0:0:16]} 23. Rxd5 {[%emt 0:0:16]} Ne7 {[%emt 0:1:8]} 24. Rd2 {[%emt 0:0:1]} d5 {[%emt 0:0:23]
} 25. exd5 {[%emt 0:0:5]} Nf5 {[%emt 0:1:13]} 26. Qf2 {[%emt 0:0:9]
} Qd6 {[%emt 0:0:4]} 27. Kh1 {[%emt 0:0:42]} Rab8 {[%emt 0:0:0]} 28. Rfd1 {[%emt 0:0:44]} Nf6 {[%emt 0:0:27]} 29. Bg5 {[%emt 0:1:1]} Ne8 {[%emt 0:1:4]} 30. Na3 {[%emt 0:1:18]} Qb4 {[%emt 0:0:3]} 31. Nc2 {[%emt 0:0:25]
} Qb3 {[%emt 0:0:21]} 32. Na1 {[%emt 0:0:5]} Qb4 {[%emt 0:0:0]} 33. Nc2 {[%emt 0:0:2]} Qd6 {[%emt 0:0:51]} 34. Na3 {[%emt 0:0:3]} Nd4 {[%emt 0:0:58]} 35. Be3 {[%emt 0:0:7]} Bg7 {[%emt 0:0:14]} 36. Nc4 {[%emt 0:0:49]
} Qb4 {[%emt 0:0:4]} 37. Bxd4 {[%emt 0:0:25]} exd4 {[%emt 0:0:0]} 38. Na3 {[%emt 0:0:2]} Qb3 {[%emt 0:0:25]} 39. Nc2 {[%emt 0:0:11]} d3 {[%emt 0:0:9]} 40. Nd4 {[%emt 0:0:15]} Qxd5 {[%emt 0:0:31]} 41. Rxd3 {[%emt 0:0:6]
} Qc5 {[%emt 0:0:1]} 42. Qd2 {[%emt 0:0:12]} Nd6 {[%emt 0:0:0]} 43. Nb3 {[%emt 0:0:18]} Qf5 {[%emt 0:0:19]} 44. Rxd6 {[%emt 0:0:4]} Rc2 {[%emt 0:0:0]} 45. Qd3 {[%emt 0:0:13]} Qc8 {[%emt 0:0:19]} 46. Rd8+ {[%emt 0:0:8]
} Qxd8 {[%emt 0:0:1]} 47. Qxd8+ {[%emt 0:0:1]} Rxd8 {[%emt 0:0:0]} 48. Rxd8+ {[%emt 0:0:1]} Bf8 {[%emt 0:0:1]} 49. Rd2 {[%emt 0:0:26]
} Rc8 {[%emt 0:0:7]} 50. g3 {[%emt 0:0:2]} Bb4 {[%emt 0:0:0]} 51. Re2 {[%emt 0:0:2]
} Kg7 {[%emt 0:0:2]} 52. Kg2 {[%emt 0:0:2]} Rd8 {[%emt 0:0:0]} 53. Nc1 {[%emt 0:0:9]} Rd1 {[%emt 0:0:5]} 54. Nd3 {[%emt 0:0:1]} Bd6 {[%emt 0:0:6]} 55. f4 {[%emt 0:0:3]} 1-0

[Event "FIDE World Rapid-ch Open 2018"]
[White "Jakovenko, Dmitry"]
[Black "Tari, Aryan"]
[Site "St. Petersburg"]
[Round "10.21"]
[Annotator "RC"]
[Result "1-0"]
[Date "2018.12.27"]
[WhiteElo "2735"]
[BlackElo "2620"]
[PlyCount "47"]
[TimeControl "900+10"]

1. Nf3 {[%emt 0:0:0]} Nf6 {[%emt 0:0:0]} 2. c4 {[%emt 0:0:3]} c5 {[%emt 0:0:3]
} 3. Nc3 {[%emt 0:0:2]} d5 {[%emt 0:0:2]} 4. cxd5 {[%emt 0:0:0]} Nxd5 {[%emt 0:0:1]} 5. e3 {[%emt 0:0:1]} Nxc3 {[%emt 0:0:3]} 6. bxc3 {[%emt 0:0:2]} g6 {[%emt 0:0:2]} 7. Bb5+ {[%emt 0:0:2]} Bd7 {[%emt 0:0:19]
} 8. Be2 {[%emt 0:0:2]} Bg7 {[%emt 0:0:5]} 9. 0-0 {[%emt 0:0:0]} 0-0 {[%emt 0:0:3]} 10. d4 {[%emt 0:0:2]} Qa5 {[%emt 0:0:10]} 11. Qb3 {[%emt 0:0:5]} Bc6 {[%emt 0:0:14]} 12. Bd2 {[%emt 0:0:4]} Rd8 {[%emt 0:1:7]
} 13. Rac1 {[%emt 0:0:7]} Qc7 {[%emt 0:0:58]} 14. Rfd1 {[%emt 0:0:11]
} b6 {[%emt 0:0:12]} 15. a4 {[%emt 0:1:46]} e6 {[%emt 0:1:46]} 16. c4 {[%emt 0:1:14]} cxd4 {[%emt 0:1:14]} 17. Nxd4 {[%emt 0:0:56]} Qd7 {[%emt 0:0:42]
} 18. Nxc6 {[%emt 0:0:44]} Nxc6 {[%emt 0:0:6]} 19. c5 {[%emt 0:0:15]
} Ne5 {[%emt 0:1:38]} 20. c6 {[%emt 0:0:49]} Nxc6 {[%emt 0:0:0]} 21. Bc3 {[%emt 0:0:32]} Qc7 {[%emt 0:4:52]} 22. Bxg7 {[%emt 0:0:4]} Rxd1+ {[%emt 0:0:18]} 23. Bxd1 {[%emt 0:0:45]} Kxg7 {[%emt 0:0:2]} 24. Bf3 {[%emt 0:0:42]} 1-0

[Event "FIDE World Rapid-ch Open 2018"]
[White "Zhigalko, Sergei"]
[Black "Vitiugov, Nikita"]
[Site "St. Petersburg"]
[Round "10.22"]
[Annotator "RC"]
[Result "1-0"]
[Date "2018.12.27"]
[WhiteElo "2604"]
[BlackElo "2719"]
[PlyCount "95"]
[TimeControl "900+10"]

1. e4 {[%emt 0:0:0]} e6 {[%emt 0:0:0]} 2. d4 {[%emt 0:0:0]} d5 {[%emt 0:0:0]} 3. e5 {[%emt 0:0:0]} c5 {[%emt 0:0:0]} 4. c3 {[%emt 0:0:0]} Nc6 {[%emt 0:0:0]
} 5. Nf3 {[%emt 0:0:0]} Qb6 {[%emt 0:0:0]} 6. a3 {[%emt 0:0:0]} c4 {[%emt 0:0:3]} 7. Nbd2 {[%emt 0:0:0]} Na5 {[%emt 0:0:1]} 8. Be2 {[%emt 0:0:0]
} Bd7 {[%emt 0:0:3]} 9. 0-0 {[%emt 0:0:3]} Ne7 {[%emt 0:0:0]} 10. Rb1 {[%emt 0:0:9]} Qc7 {[%emt 0:0:28]} 11. h4 {[%emt 0:1:12]} h6 {[%emt 0:0:27]
} 12. h5 {[%emt 0:0:4]} Nc8 {[%emt 0:0:19]} 13. Qe1 {[%emt 0:0:0]} Nb6 {[%emt 0:1:27]} 14. Bd1 {[%emt 0:0:2]} 0-0-0 {[%emt 0:0:55]} 15. Nh4 {[%emt 0:1:1]} Be7 {[%emt 0:0:58]} 16. f4 {[%emt 0:0:2]} Rhg8 {[%emt 0:0:17]
} 17. Bc2 {[%emt 0:0:18]} Kb8 {[%emt 0:1:17]} 18. Ndf3 {[%emt 0:0:39]
} Qc8 {[%emt 0:0:26]} 19. Qg3 {[%emt 0:1:14]} f5 {[%emt 0:0:0]} 20. exf6 {[%emt 0:1:9]} gxf6 {[%emt 0:0:2]} 21. Ng6 {[%emt 0:0:6]} Bd6 {[%emt 0:0:23]} 22. Qh4 {[%emt 0:0:6]} f5 {[%emt 0:0:4]} 23. Nfe5 {[%emt 0:0:1]
} Be8 {[%emt 0:0:10]} 24. Bd2 {[%emt 0:3:48]} Nb3 {[%emt 0:0:0]} 25. Be3 {[%emt 0:0:7]} Qc7 {[%emt 0:0:17]} 26. Rf2 {[%emt 0:5:17]} Nd7 {[%emt 0:0:53]} 27. Rbf1 {[%emt 0:1:17]} Bxg6 {[%emt 0:1:55]} 28. Nxg6 {[%emt 0:1:10]
} Nf8 {[%emt 0:0:2]} 29. Ne5 {[%emt 0:0:3]} Nh7 {[%emt 0:0:0]} 30. Ng6 {[%emt 0:0:6]} Nf8 {[%emt 0:0:19]} 31. Ne5 {[%emt 0:0:1]} Nh7 {[%emt 0:0:12]} 32. Ng6 {[%emt 0:0:14]} Qf7 {[%emt 0:0:31]} 33. g4 {[%emt 0:0:0]} fxg4 {[%emt 0:3:43]} 34. f5 {[%emt 0:0:23]} g3 {[%emt 0:0:24]} 35. Rg2 {[%emt 0:0:12]} exf5 {[%emt 0:0:32]} 36. Bxh6 {[%emt 0:0:7]} Ka8 {[%emt 0:1:21]
} 37. Bxf5 {[%emt 0:0:2]} Rde8 {[%emt 0:0:20]} 38. Ne5 {[%emt 0:1:9]
} Bxe5 {[%emt 0:0:50]} 39. dxe5 {[%emt 0:0:1]} Qc7 {[%emt 0:0:0]} 40. Bg6 {[%emt 0:0:14]} Qb6+ {[%emt 0:0:16]} 41. Kh1 {[%emt 0:0:9]} Rxg6 {[%emt 0:0:4]} 42. hxg6 {[%emt 0:0:1]} Qxg6 {[%emt 0:0:1]} 43. Rxg3 {[%emt 0:0:6]} Qc6 {[%emt 0:0:8]} 44. Kg1 {[%emt 0:0:30]} a5 {[%emt 0:0:0]} 45. Be3 {[%emt 0:0:4]} Nf8 {[%emt 0:0:8]} 46. Rg8 {[%emt 0:0:17]} Ne6 {[%emt 0:0:14]} 47. Qh8 {[%emt 0:0:7]} Nc7 {[%emt 0:0:16]} 48. Rff8 {[%emt 0:0:8]
} 1-0

[Event "FIDE World Rapid-ch Open 2018"]
[White "Jobava, Baadur"]
[Black "Alekseenko, Kirill"]
[Site "St. Petersburg"]
[Round "10.23"]
[Annotator "ChessBase"]
[Result "0-1"]
[Date "2018.12.27"]
[WhiteElo "2627"]
[BlackElo "2638"]
[PlyCount "84"]
[TimeControl "900+10"]

1. b3 {[%emt 0:0:0]} d5 {[%emt 0:0:3]} 2. Bb2 {[%emt 0:0:0]} Bf5 {[%emt 0:0:7]
} 3. e3 {[%emt 0:0:0]} e6 {[%emt 0:0:2]} 4. Nc3 {[%emt 0:0:0]} Nf6 {[%emt 0:0:11]} 5. Nge2 {[%emt 0:0:15]} c5 {[%emt 0:0:30]} 6. Ng3 {[%emt 0:1:20]
} Bg6 {[%emt 0:0:4]} 7. Bb5+ {[%emt 0:0:5]} Nc6 {[%emt 0:0:0]} 8. Nce2 {[%emt 0:0:19]} Bd6 {[%emt 0:2:16]} 9. h4 {[%emt 0:0:26]} h6 {[%emt 0:2:41]
} 10. Nf4 {[%emt 0:0:5]} 0-0 {[%emt 0:1:3]} 11. Bxc6 {[%emt 0:0:8]
} bxc6 {[%emt 0:0:4]} 12. Qe2 {[%emt 0:1:20]} Bh7 {[%emt 0:0:0]} 13. 0-0-0 {[%emt 0:0:35]} e5 {[%emt 0:1:44]} 14. Nh3 {[%emt 0:0:2]} a5 {[%emt 0:0:8]} 15. Ng5 {[%emt 0:0:3]} Bg6 {[%emt 0:0:28]} 16. h5 {[%emt 0:0:0]} Nxh5 {[%emt 0:0:24]} 17. Nxh5 {[%emt 0:0:2]} Qxg5 {[%emt 0:0:5]} 18. g4 {[%emt 0:3:9]} f5 {[%emt 0:0:53]} 19. Nxg7 {[%emt 0:0:20]} fxg4 {[%emt 0:0:32]
} 20. Rdg1 {[%emt 0:5:24]} Kxg7 {[%emt 0:0:1]} 21. Rxg4 {[%emt 0:1:0]
} Qf5 {[%emt 0:0:1]} 22. d3 {[%emt 0:1:13]} Qxf2 {[%emt 0:0:0]} 23. Rxg6+ {[%emt 0:0:14]} Kxg6 {[%emt 0:0:9]} 24. Qg4+ {[%emt 0:0:13]} Kf7 {[%emt 0:0:36]} 25. Qd7+ {[%emt 0:0:37]} Be7 {[%emt 0:0:2]} 26. Qxc6 {[%emt 0:0:1]
} Rad8 {[%emt 0:0:9]} 27. Kb1 {[%emt 0:0:32]} Rg8 {[%emt 0:0:0]} 28. Rxh6 Rg1+ 29. Bc1 Qf1 {[%emt 0:0:27]} 30. Qe6+ {[%emt 0:0:42]} Kg7 {[%emt 0:0:4]
} 31. Rg6+ {[%emt 0:0:1]} Rxg6 {[%emt 0:1:19]} 32. Qxe7+ {[%emt 0:0:1]
} Qf7 {[%emt 0:0:2]} 33. Qxd8 {[%emt 0:0:1]} a4 {[%emt 0:0:0]} 34. Qb8 {[%emt 0:0:24]} Qe7 {[%emt 0:0:44]} 35. Qa8 {[%emt 0:0:31]} Qd7 {[%emt 0:0:31]} 36. Qa5 {[%emt 0:0:7]} Qc6 {[%emt 0:0:23]} 37. Qa7+ {[%emt 0:0:6]
} Kf6 {[%emt 0:0:19]} 38. Ba3 {[%emt 0:0:1]} Rg1+ {[%emt 0:0:0]} 39. Kb2 {[%emt 0:0:2]} c4 {[%emt 0:0:7]} 40. dxc4 {[%emt 0:0:12]} dxc4 {[%emt 0:0:2]} 41. bxa4 {[%emt 0:0:3]} c3+ {[%emt 0:0:4]} 42. Kb3 {[%emt 0:0:1]
} Rb1+ {[%emt 0:0:3]} 0-1